fUSD/lending_fUSD_20241231
["ID","MTS","AMOUNT","RATE_DAILY","PERIOD"]
[347254060,1735639840495,-2692.47478749,0.0001238,2]
[347254061,1735639840506,-1021.095,0.0001238,2]
[347254062,1735639840518,-483.21795857,0.0001238,2]
[347254063,1735639840530,-452.45572213,0.0001238,2]
[347254064,1735639840542,-302.71657206,0.0001238,2]
[347254065,1735639840554,-533.699318,0.0001238,2]
[347254066,1735639840566,-418.59099643,0.0001238,2]
[347254067,1735639840577,-297.82867182,0.0001238,2]
[347254068,1735639840607,-3709.77563643,0.0001238,2]
[347254069,1735639840662,-2452.68952572,0.0001238,2]
[347254070,1735639840671,-220295.39414698,0.0001238,2]
[347254071,1735639840764,-762.84,0.0001238,2]
[347254072,1735639840775,-859.757009,0.0001238,2]
[347254073,1735639840786,-622.68,0.0001238,2]
[347254086,1735639842910,-267.180579,0.0001238,2]
[347254088,1735639842938,-13317.90840293,0.0001238,2]
[347254089,1735639842948,-276.29565446,0.0001238,2]
[347254090,1735639842959,-26104.88159629,0.0001238,2]
[347254091,1735639843035,-1378.23015953,0.0001238,2]
[347254092,1735639843139,-667.877,0.0001238,2]
[347254093,1735639843151,-402.6,0.0001238,2]
[347254094,1735639843165,-3197.54513101,0.0001238,2]
[347254095,1735639843193,-7764.0017081,0.0001238,2]
[347254096,1735639843205,-5358.95820267,0.0001238,2]
[347254097,1735639843220,-3779.816675,0.0001238,2]
[347254098,1735639843231,-22544.83802951,0.0001238,2]
[347254099,1735639843242,-496.39167678,0.0001238,2]
[347254100,1735639843258,-1660.0,0.0001238,2]
[347254106,1735639845909,-11070.648445,0.0001238,2]
[347254108,1735639846129,-2096.34144121,0.0001238,2]
[347254112,1735639846504,-3212.94337782,0.0001238,2]
[347254113,1735639846516,-324.4,0.0001238,2]
[347254114,1735639846577,-8896.85184912,0.0001238,2]
[347254115,1735639846588,-1139.1771887,0.0001238,2]
[347254116,1735639846599,-7221.05763207,0.0001238,2]
[347254117,1735639846609,-485.58925356,0.0001238,2]
[347254118,1735639846625,-1823.50243452,0.0001238,2]
[347254119,1735639846636,-1176.26119037,0.0001238,2]
[347254120,1735639846648,-48821.01897515,0.0001238,2]
[347254121,1735639986600,170.99665931,0.0002,120]
[347254122,1735640081595,306.97,0.00010137,2]
[347254123,1735640280494,7745.0,0.000124,120]
[347254124,1735640293898,5000.0,0.0001243,120]
[347254125,1735640394834,1192.62159722,0.0001235,10]
[347254126,1735640395114,2547.72995465,0.0001235,10]
[347254127,1735640395353,162.60630953,0.0001235,10]
[347254377,1735640549109,294.0,9.251e-05,2]
[347254378,1735640587061,500.0,8.22e-05,2]
[347254379,1735640587675,-187.76275031,0.0002,60]
[347254380,1735640587710,-300.0,0.00021,120]
[347254381,1735640587735,-286.63085902,0.00021,120]
[347254382,1735640587767,-1000.0,0.00022,120]
[347254383,1735640587793,-160.0,0.00022,120]
[347254384,1735640587820,-378.968243,0.00022695,120]
[347254385,1735640587845,-2000.0,0.00022695,120]
[347254386,1735640588110,-518.667561,0.00022695,120]
[347254387,1735640588231,-217.23021,0.00022695,120]
[347254388,1735640588259,-1000.0,0.00023,120]
[347254389,1735640588294,-150.0,0.00023944,120]
[347254390,1735640588321,-2000.0,0.00024,120]
[347254391,1735640588345,-279.18318984,0.00024,120]
[347254392,1735640588371,-150.0,0.00024133,120]
[347254393,1735640588396,-2000.0,0.00024195,120]
[347254394,1735640588422,-150.0,0.00024305,120]
[347254395,1735640588450,-338.9598089,0.000244,120]
[347254396,1735640588474,-508.65,0.000245,120]
[347254397,1735640588500,-150.0,0.00024654,120]
[347254398,1735640588524,-500.0,0.00024657,60]
[347254399,1735640588549,-500.0,0.00024657,60]
[347254400,1735640588576,-500.0,0.00024657,60]
[347254401,1735640588599,-500.0,0.00024657,60]
[347254402,1735640588624,-500.0,0.00024657,60]
[347254403,1735640588648,-513.84182518,0.00024657,60]
[347254404,1735640588672,-500.0,0.00024657,60]
[347254405,1735640588696,-500.0,0.00024657,60]
[347254406,1735640588719,-500.0,0.00024657,60]
[347254407,1735640588742,-500.0,0.00024657,60]
[347254408,1735640588766,-500.0,0.00024657,60]
[347254409,1735640588790,-175.15707193,0.00024657,60]
[347254410,1735640588814,-500.0,0.00024657,60]
[347254411,1735640588839,-500.0,0.00024657,60]
[347254412,1735640588863,-500.0,0.00024657,60]
[347254413,1735640588887,-500.0,0.00024657,60]
[347254414,1735640588911,-500.0,0.00024657,60]
[347254415,1735640588935,-500.0,0.00024657,60]
[347254416,1735640588958,-500.0,0.00024657,60]
[347254417,1735640588982,-500.0,0.00024657,60]
[347254418,1735640589006,-500.0,0.00024657,60]
[347254419,1735640589030,-500.0,0.00024657,60]
[347254420,1735640589057,-500.0,0.00024657,60]
[347254421,1735640589083,-500.0,0.00024657,60]
[347254422,1735640589108,-500.0,0.00024657,60]
[347254423,1735640589133,-500.0,0.00024657,60]
[347254424,1735640589158,-500.0,0.00024657,60]
[347254425,1735640589182,-500.0,0.00024657,60]
[347254426,1735640589206,-160.03154819,0.00024657,60]
[347254427,1735640589229,-2085.79,0.00024657,60]
[347254428,1735640589254,-2085.79,0.00024657,60]
[347254429,1735640589277,-2085.79,0.00024657,60]
[347254430,1735640589302,-2085.79,0.00024657,60]
[347254431,1735640589326,-2085.79,0.00024657,60]
[347254432,1735640589351,-2085.79,0.00024657,60]
[347254433,1735640589375,-2085.79,0.00024657,60]
[347254434,1735640589400,-2085.79,0.00024657,60]
[347254435,1735640589425,-2085.79,0.00024657,60]
[347254436,1735640589454,-2085.79,0.00024657,60]
[347254437,1735640589479,-2085.79,0.00024657,60]
[347254438,1735640589504,-2085.79,0.00024657,60]
[347254439,1735640589529,-2085.79,0.00024657,60]
[347254440,1735640589554,-2085.79,0.00024657,60]
[347254441,1735640589578,-2085.79,0.00024657,60]
[347254442,1735640589602,-2085.79,0.00024657,60]
[347254443,1735640589626,-2085.79,0.00024657,60]
[347254444,1735640589651,-2085.79,0.00024657,60]
[347254445,1735640589675,-2085.79,0.00024657,60]
[347254446,1735640589699,-2085.79,0.00024657,60]
[347254447,1735640589722,-2085.79,0.00024657,60]
[347254448,1735640589747,-2085.79,0.00024657,60]
[347254449,1735640589772,-2085.79,0.00024657,60]
[347254450,1735640589796,-2085.85307265,0.00024657,60]
[347254451,1735640589821,-1229.92,0.00024657,60]
[347254452,1735640589845,-1229.92,0.00024657,60]
[347254453,1735640589870,-1229.92,0.00024657,60]
[347254454,1735640589893,-1229.92,0.00024657,60]
[347254455,1735640589917,-1229.92,0.00024657,60]
[347254456,1735640589942,-1229.92,0.00024657,60]
[347254457,1735640589965,-1229.92,0.00024657,60]
[347254458,1735640589990,-1229.92,0.00024657,60]
[347254459,1735640590015,-1229.92,0.00024657,60]
[347254460,1735640590040,-1229.92,0.00024657,60]
[347254461,1735640590066,-1229.92,0.00024657,60]
[347254462,1735640590091,-1229.92,0.00024657,60]
[347254463,1735640590117,-1229.92,0.00024657,60]
[347254464,1735640590141,-1229.92,0.00024657,60]
[347254465,1735640590166,-1229.92,0.00024657,60]
[347254466,1735640590190,-1229.92,0.00024657,60]
[347254467,1735640590214,-1229.92,0.00024657,60]
[347254468,1735640590239,-1229.92,0.00024657,60]
[347254469,1735640590263,-1229.92,0.00024657,60]
[347254470,1735640590287,-1229.92,0.00024657,60]
[347254471,1735640590311,-1229.92,0.00024657,60]
[347254472,1735640590336,-1229.92,0.00024657,60]
[347254473,1735640590361,-1229.92,0.00024657,60]
[347254474,1735640590385,-1230.02775781,0.00024657,60]
[347254475,1735640590410,-500.0,0.00024657,60]
[347254476,1735640590438,-500.0,0.00024657,60]
[347254477,1735640590462,-500.0,0.00024657,60]
[347254478,1735640590486,-500.0,0.00024657,60]
[347254479,1735640590511,-509.76432156,0.00024657,60]
[347254480,1735640590807,-2578.63,0.00024657,60]
[347254481,1735640590834,-2578.63,0.00024657,60]
[347254482,1735640590858,-2578.63,0.00024657,60]
[347254483,1735640590883,-2578.63,0.00024657,60]
[347254484,1735640590906,-2578.63,0.00024657,60]
[347254485,1735640590931,-2578.63,0.00024657,60]
[347254486,1735640590956,-2578.63,0.00024657,60]
[347254487,1735640590981,-2578.63,0.00024657,60]
[347254488,1735640591005,-2578.63,0.00024657,60]
[347254489,1735640591030,-2578.63,0.00024657,60]
[347254490,1735640591055,-2578.63,0.00024657,60]
[347254491,1735640591080,-2578.63,0.00024657,60]
[347254492,1735640591104,-2578.63,0.00024657,60]
[347254493,1735640591130,-2578.63,0.00024657,60]
[347254494,1735640591156,-2578.63,0.00024657,60]
[347254495,1735640591180,-2578.63,0.00024657,60]
[347254496,1735640591204,-2578.63,0.00024657,60]
[347254497,1735640591229,-2578.63,0.00024657,60]
[347254498,1735640591253,-2578.63,0.00024657,60]
[347254499,1735640591279,-2578.63,0.00024657,60]
[347254500,1735640591304,-2578.63,0.00024657,60]
[347254501,1735640591330,-2578.63,0.00024657,60]
[347254502,1735640591355,-2578.63,0.00024657,60]
[347254503,1735640591380,-2578.73942232,0.00024657,60]
[347254504,1735640591405,-500.0,0.00024657,60]
[347254505,1735640591433,-500.0,0.00024657,60]
[347254506,1735640591457,-500.0,0.00024657,60]
[347254507,1735640591482,-500.0,0.00024657,60]
[347254508,1735640591505,-500.0,0.00024657,60]
[347254509,1735640591529,-500.0,0.00024657,60]
[347254510,1735640591553,-500.0,0.00024657,60]
[347254511,1735640591579,-500.0,0.00024657,60]
[347254512,1735640591604,-505.13260916,0.00024657,60]
[347254513,1735640591629,-500.0,0.00024657,60]
[347254514,1735640591654,-500.0,0.00024657,60]
[347254515,1735640591681,-500.0,0.00024657,60]
[347254516,1735640591706,-500.0,0.00024657,60]
[347254517,1735640591730,-500.0,0.00024657,60]
[347254518,1735640591755,-500.0,0.00024657,60]
[347254519,1735640591779,-500.0,0.00024657,60]
[347254520,1735640591804,-500.0,0.00024657,60]
[347254521,1735640591828,-500.0,0.00024657,60]
[347254522,1735640591852,-500.0,0.00024657,60]
[347254523,1735640591877,-500.0,0.00024657,60]
[347254524,1735640591901,-500.0,0.00024657,60]
[347254525,1735640591926,-500.0,0.00024657,60]
[347254526,1735640591950,-500.0,0.00024657,60]
[347254527,1735640591973,-500.0,0.00024657,60]
[347254528,1735640591997,-500.0,0.00024657,60]
[347254529,1735640592021,-232.02783148,0.00024657,60]
[347254530,1735640592046,-3121.2,0.00024657,60]
[347254531,1735640592075,-3121.2,0.00024657,60]
[347254532,1735640592099,-3121.2,0.00024657,60]
[347254533,1735640592123,-3121.2,0.00024657,60]
[347254534,1735640592147,-3121.2,0.00024657,60]
[347254535,1735640592171,-3121.2,0.00024657,60]
[347254536,1735640592195,-3121.2,0.00024657,60]
[347254537,1735640592219,-3121.2,0.00024657,60]
[347254538,1735640592245,-3121.2,0.00024657,60]
[347254539,1735640592271,-3121.2,0.00024657,60]
[347254540,1735640592297,-3121.2,0.00024657,60]
[347254541,1735640592326,-3121.2,0.00024657,60]
[347254542,1735640592351,-3121.2,0.00024657,60]
[347254543,1735640592378,-3121.2,0.00024657,60]
[347254544,1735640592403,-3121.2,0.00024657,60]
[347254545,1735640592431,-3121.2,0.00024657,60]
[347254546,1735640592464,-3121.2,0.00024657,60]
[347254547,1735640592490,-3121.2,0.00024657,60]
[347254548,1735640592517,-3121.2,0.00024657,60]
[347254549,1735640592541,-3121.2,0.00024657,60]
[347254550,1735640592571,-3121.2,0.00024657,60]
[347254551,1735640592595,-3121.2,0.00024657,60]
[347254552,1735640592621,-3121.2,0.00024657,60]
[347254553,1735640592646,-3121.27925467,0.00024657,60]
[347254554,1735640592670,-500.0,0.00024657,60]
[347254555,1735640592694,-505.75207657,0.00024657,60]
[347254556,1735640592719,-581.92,0.00024657,60]
[347254557,1735640592744,-581.92,0.00024657,60]
[347254558,1735640592767,-581.92,0.00024657,60]
[347254559,1735640592791,-581.92,0.00024657,60]
[347254560,1735640592817,-581.92,0.00024657,60]
[347254561,1735640592841,-581.92,0.00024657,60]
[347254562,1735640592865,-581.92,0.00024657,60]
[347254563,1735640592888,-581.92,0.00024657,60]
[347254564,1735640592912,-581.92,0.00024657,60]
[347254565,1735640592936,-581.92,0.00024657,60]
[347254566,1735640592960,-581.92,0.00024657,60]
[347254567,1735640592983,-581.92,0.00024657,60]
[347254568,1735640593006,-581.92,0.00024657,60]
[347254569,1735640593030,-581.92,0.00024657,60]
[347254570,1735640593058,-581.92,0.00024657,60]
[347254571,1735640593082,-581.92,0.00024657,60]
[347254572,1735640593106,-581.92,0.00024657,60]
[347254573,1735640593131,-581.92,0.00024657,60]
[347254574,1735640593156,-581.92,0.00024657,60]
[347254575,1735640593407,-581.92,0.00024657,60]
[347254576,1735640593441,-581.92,0.00024657,60]
[347254577,1735640593467,-581.92,0.00024657,60]
[347254578,1735640593492,-581.92,0.00024657,60]
[347254579,1735640593516,-582.06828093,0.00024657,60]
[347254580,1735640593542,-7008.85,0.00024657,60]
[347254581,1735640593573,-7008.85,0.00024657,60]
[347254582,1735640593599,-7008.85,0.00024657,60]
[347254583,1735640593626,-7008.85,0.00024657,60]
[347254584,1735640593652,-7008.85,0.00024657,60]
[347254585,1735640593679,-7008.85,0.00024657,60]
[347254586,1735640593705,-7008.85,0.00024657,60]
[347254587,1735640593730,-7008.85,0.00024657,60]
[347254588,1735640593755,-7008.85,0.00024657,60]
[347254589,1735640593781,-7008.85,0.00024657,60]
[347254590,1735640593809,-7008.85,0.00024657,60]
[347254591,1735640593835,-7008.85,0.00024657,60]
[347254592,1735640593861,-7008.85,0.00024657,60]
[347254593,1735640593886,-7008.85,0.00024657,60]
[347254594,1735640593911,-7008.85,0.00024657,60]
[347254595,1735640593937,-7008.85,0.00024657,60]
[347254596,1735640593963,-7008.85,0.00024657,60]
[347254597,1735640593990,-7008.85,0.00024657,60]
[347254598,1735640594015,-7008.85,0.00024657,60]
[347254599,1735640594041,-7008.85,0.00024657,60]
[347254600,1735640594069,-7008.85,0.00024657,60]
[347254601,1735640594095,-7008.85,0.00024657,60]
[347254602,1735640594121,-7008.85,0.00024657,60]
[347254603,1735640594146,-7008.85602061,0.00024657,60]
[347254604,1735640594171,-150.5,0.0002467,120]
[347254605,1735640594195,-150.5,0.0002467,120]
[347254606,1735640594220,-150.5,0.0002467,120]
[347254607,1735640594245,-150.5,0.0002467,120]
[347254608,1735640594270,-318.0,0.0002467,120]
[347254609,1735640594295,-318.0,0.0002467,120]
[347254610,1735640594322,-177.25,0.0002467,120]
[347254611,1735640594348,-150.5,0.0002468,120]
[347254612,1735640594374,-150.5,0.0002468,120]
[347254613,1735640594400,-150.5,0.0002468,120]
[347254614,1735640594427,-150.5,0.0002468,120]
[347254615,1735640594465,-318.0,0.0002468,120]
[347254616,1735640594491,-150.5,0.0002468,120]
[347254617,1735640594516,-318.0,0.0002468,120]
[347254618,1735640594541,-150.5,0.0002468,120]
[347254619,1735640594569,-318.0,0.0002468,120]
[347254620,1735640594595,-323.44,0.0002468,120]
[347254621,1735640594620,-153.43,0.0002468,120]
[347254622,1735640594645,-150.5,0.0002469,120]
[347254623,1735640594669,-150.5,0.0002469,120]
[347254624,1735640594694,-150.5,0.0002469,120]
[347254625,1735640594717,-150.5,0.0002469,120]
[347254626,1735640594742,-318.0,0.0002469,120]
[347254627,1735640594766,-150.5,0.0002469,120]
[347254628,1735640594791,-150.5,0.0002469,120]
[347254629,1735640594817,-150.5,0.0002469,120]
[347254630,1735640594842,-318.0,0.0002469,120]
[347254631,1735640594866,-150.5,0.0002469,120]
[347254632,1735640594890,-318.0,0.0002469,120]
[347254633,1735640594914,-318.0,0.0002469,120]
[347254634,1735640594938,-269.12,0.0002469,120]
[347254635,1735640594962,-184.36,0.0002469,120]
[347254636,1735640594987,-150.0,0.00024728,120]
[347254637,1735640595014,-150.0,0.00024809,120]
[347254638,1735640595038,-150.0,0.00024884,120]
[347254639,1735640595066,-500.0,0.00024947,60]
[347254640,1735640595090,-500.0,0.00024947,60]
[347254641,1735640595115,-161.33737368,0.0002496,120]
[347254642,1735640596435,-150.5,0.0002498,120]
[347254643,1735640596463,-2000.0,0.00025,120]
[347254644,1735640596486,-200.000001,0.00025,120]
[347254645,1735640596511,-3196.62148961,0.00025,60]
[347254646,1735640596536,-200.0,0.00025,120]
[347254647,1735640596563,-2048.74582919,0.00025,120]
[347254648,1735640596589,-1760.09619061,0.00025,120]
[347254649,1735640596614,-501.6135485,0.00025,120]
[347254650,1735640596638,-500.0,0.00025244,120]
[347254651,1735640596664,-150.0,0.0002567,120]
[347254652,1735640596688,-755.641561,0.00025695,120]
[347254653,1735640596713,-500.0,0.00025901,120]
[347254654,1735640596739,-2000.0,0.00026,120]
[347254655,1735640596764,-2421.09213686,0.00026,120]
[347254656,1735640596790,-150.0,0.00026194,120]
[347254657,1735640596815,-150.0,0.00026438,120]
[347254658,1735640596839,-500.0,0.00026559,120]
[347254659,1735640596864,-555.55555,0.00027,120]
[347254660,1735640596889,-2000.0,0.00027,120]
[347254661,1735640596913,-678.53377236,0.00027,120]
[347254662,1735640596938,-2000.0,0.00027,120]
[347254663,1735640596965,-500.0,0.00027217,120]
[347254664,1735640596991,-555.55555,0.000273,120]
[347254665,1735640597014,-335.84635881,0.0002736,120]
[347254666,1735640597040,-799.79465758,0.00027397,60]
[347254667,1735640597066,-150.0,0.00027397,60]
[347254668,1735640597092,-150.0,0.00027397,60]
[347254669,1735640597118,-150.0,0.00027397,60]
[347254670,1735640597142,-150.0,0.00027397,60]
[347254671,1735640597168,-150.0,0.00027397,60]
[347254672,1735640597193,-150.0,0.00027397,60]
[347254673,1735640597218,-150.0,0.00027397,60]
[347254674,1735640597241,-150.0,0.00027397,60]
[347254675,1735640597266,-223.97358866,0.00027397,60]
[347254676,1735640597291,-200.0,0.00027397,60]
[347254677,1735640597316,-150.0,0.00027397,120]
[347254678,1735640597342,-555.55555,0.000276,120]
[347254679,1735640597368,-500.0,0.00027874,120]
[347254680,1735640597393,-555.55555,0.000279,120]
[347254681,1735640597426,-150.0,0.00027945,120]
[347254682,1735640597458,-177.27,0.00027945,91]
[347254683,1735640597484,-3000.0,0.00028,120]
[347254684,1735640597510,-555.55555,0.000282,120]
[347254685,1735640597536,-150.0,0.00028267,120]
[347254686,1735640597563,-150.0,0.00028324,120]
[347254687,1735640597589,-555.55555,0.000285,120]
[347254688,1735640597614,-500.0,0.00028532,120]
[347254689,1735640597639,-555.55555,0.000288,120]
[347254690,1735640597665,-1000.0,0.00029,120]
[347254691,1735640597690,-555.55555,0.000291,120]
[347254692,1735640597715,-500.0,0.00029189,120]
[347254693,1735640597742,-150.0,0.00029273,120]
[347254694,1735640597766,-555.5556,0.000294,120]
[347254695,1735640597791,-150.0,0.00029501,120]
[347254696,1735640597818,-150.0,0.00029688,120]
[347254697,1735640597843,-500.0,0.00029847,120]
[347254698,1735640597869,-310.945,0.0002989,120]
[347254699,1735640597896,-151.0,0.0003,120]
[347254700,1735640597922,-253.83333333,0.0003,120]
[347254701,1735640597947,-3000.0,0.0003,120]
[347254702,1735640597972,-1046.43778303,0.0003,120]
[347254703,1735640597996,-200.0,0.0003,120]
[347254704,1735640598022,-200.0,0.00030137,60]
[347254705,1735640598332,-500.0,0.00030505,120]
[347254706,1735640598358,-253.83333333,0.00030849,120]
[347254707,1735640598384,-151.0,0.00030904,120]
[347254708,1735640598412,-3000.0,0.00031,120]
[347254709,1735640598439,-310.908,0.0003109,120]
[347254710,1735640598466,-500.0,0.00031162,120]
[347254711,1735640598498,-300.0,0.000314,120]
[347254712,1735640598526,-700.0,0.00031506,120]
[347254713,1735640598553,-150.0,0.00031571,120]
[347254714,1735640598581,-253.83333333,0.00031699,120]
[347254715,1735640598608,-151.0,0.00031808,120]
[347254716,1735640598634,-500.0,0.0003182,120]
[347254717,1735640598660,-150.0,0.00031959,120]
[347254718,1735640598686,-3000.0,0.00032,120]
[347254719,1735640598711,-700.0,0.00032054,120]
[347254720,1735640598738,-310.958,0.0003229,120]
[347254721,1735640598763,-500.0,0.00032477,120]
[347254722,1735640598789,-231.746,0.000325,120]
[347254723,1735640598817,-231.746,0.000325,120]
[347254724,1735640598843,-231.747,0.000325,120]
[347254725,1735640598869,-231.746,0.000325,120]
[347254726,1735640598895,-231.746,0.000325,120]
[347254727,1735640598922,-253.83333333,0.00032548,120]
[347254728,1735640598947,-700.0,0.00032602,120]
[347254729,1735640598973,-151.0,0.00032712,120]
[347254730,1735640598999,-200.0,0.00032877,60]
[347254731,1735640599026,-150.0,0.00032986,120]
[347254732,1735640599054,-2000.0,0.00033,120]
[347254733,1735640599083,-2452.65125337,0.00033,120]
[347254734,1735640599109,-194.85816561,0.00033,120]
[347254735,1735640599135,-1000.0,0.00033,120]
[347254736,1735640599162,-150.0,0.0003309,120]
[347254737,1735640599187,-500.0,0.00033135,120]
[347254738,1735640599212,-700.0,0.0003315,120]
[347254739,1735640599238,-4500.0,0.00033166,60]
[347254740,1735640599264,-1800.0,0.00033166,60]
[347254741,1735640599292,-253.83333333,0.00033397,120]
[347254742,1735640599320,-310.958,0.0003349,120]
[347254743,1735640599348,-151.0,0.00033616,120]
[347254744,1735640599375,-700.0,0.00033698,120]
[347254745,1735640599401,-500.0,0.00033793,120]
[347254746,1735640599431,-150.0,0.00033871,120]
[347254747,1735640599459,-3000.0,0.00034,120]
[347254748,1735640599486,-700.0,0.00034246,120]
[347254749,1735640599511,-253.83333333,0.00034247,120]
[347254750,1735640599537,-4500.0,0.00034262,60]
[347254751,1735640599565,-1800.0,0.00034262,60]
[347254752,1735640599591,-500.0,0.0003445,120]
[347254753,1735640599618,-151.0,0.00034521,120]
[347254754,1735640599646,-150.0,0.0003466,120]
[347254755,1735640599673,-310.914,0.0003469,120]
[347254756,1735640599701,-1143.18,0.00034746,120]
[347254757,1735640599727,-700.0,0.00034794,120]
[347254758,1735640599754,-150.0,0.00034935,120]
[347254759,1735640599781,-568.34778,0.00035,120]
[347254760,1735640599806,-3000.0,0.00035,120]
[347254761,1735640599833,-6967.28832488,0.00035,120]
[347254762,1735640599859,-6853.20672012,0.00035,120]
[347254763,1735640599884,-229587.89125926,0.00035,120]
[347254764,1735640599910,-605.58604306,0.00035,120]
[347254765,1735640599936,-937.23406686,0.00035,120]
[347254766,1735640599962,-1454676.9735161,0.00035,60]
[347254767,1735640599988,-253.83333333,0.00035096,120]
[347254768,1735640600014,-500.0,0.00035108,120]
[347254769,1735640600042,-700.0,0.00035342,120]
[347254770,1735640600069,-177.27,0.00035342,91]
[347254771,1735640600094,-308.28868791,0.00035358,60]
[347254772,1735640600119,-2816.12855136,0.00035358,60]
[347254773,1735640600145,-150.0,0.00035414,120]
[347254774,1735640600171,-151.0,0.00035425,120]
[347254775,1735640600199,-200.0,0.00035616,60]
[347254776,1735640600224,-500.0,0.00035765,120]
[347254777,1735640600250,-310.918,0.0003589,120]
[347254778,1735640600276,-700.0,0.0003589,120]
[347254779,1735640600302,-26533.0,0.000359,90]
[347254780,1735640600327,-253.83333333,0.00035945,120]
[347254781,1735640600353,-2000.0,0.00036,120]
[347254782,1735640600382,-2691.07161828,0.00036,120]
[347254783,1735640600409,-151.0,0.00036329,120]
[347254784,1735640600437,-500.0,0.00036423,120]
[347254785,1735640600463,-700.0,0.00036438,120]
[347254786,1735640600487,-1239.86018711,0.00036666,120]
[347254787,1735640600516,-1900.0,0.000367,120]
[347254788,1735640600542,-150.0,0.00036771,120]
[347254789,1735640600567,-253.83333333,0.00036795,120]
[347254790,1735640600593,-394.54769828,0.000368,60]
[347254791,1735640600618,-700.0,0.00036986,120]
[347254792,1735640600643,-150.0,0.00036997,120]
[347254793,1735640600670,-1000.0,0.00037,120]
[347254794,1735640600694,-899.999999,0.00037,90]
[347254795,1735640600720,-15424.0,0.00037,117]
[347254796,1735640600745,-500.0,0.00037081,120]
[347254797,1735640600770,-310.967,0.0003709,120]
[347254798,1735640601069,-151.0,0.00037233,120]
[347254799,1735640601098,-1143.18,0.0003733,120]
[347254800,1735640601126,-300.0,0.000374,120]
[347254801,1735640601151,-8403.97729894,0.000375,120]
[347254802,1735640601177,-700.0,0.00037534,120]
[347254803,1735640601203,-253.83333333,0.00037644,120]
[347254804,1735640601228,-500.0,0.00037738,120]
[347254805,1735640601254,-1394.05621546,0.000378,120]
[347254806,1735640601281,-326601.95380719,0.00038,110]
[347254807,1735640601307,-60000.0,0.00038,120]
[347254808,1735640601334,-87628.13261271,0.00038,110]
[347254809,1735640601359,-709625.73567462,0.00038,110]
[347254810,1735640601385,-283379.16743718,0.00038,110]
[347254811,1735640601411,-2000.0,0.00038,120]
[347254812,1735640601440,-181.5475502,0.00038,120]
[347254813,1735640601466,-3284.66985269,0.00038,120]
[347254814,1735640601492,-9681.65782969,0.00038,120]
[347254815,1735640601518,-2000.0,0.00038,120]
[347254816,1735640601544,-700.0,0.00038082,120]
[347254817,1735640601572,-151.0,0.00038137,120]
[347254818,1735640601601,-310.944,0.0003829,120]
[347254819,1735640601626,-200.0,0.00038356,60]
[347254820,1735640601651,-500.0,0.00038396,120]
[347254821,1735640601676,-253.83333333,0.00038493,120]
[347254822,1735640601702,-349.74757188,0.0003863,120]
[347254823,1735640601728,-150.0,0.00038681,120]
[347254824,1735640601755,-129196.26062943,0.000388,120]
[347254825,1735640601782,-1000.0,0.00039,120]
[347254826,1735640601807,-1386.99282859,0.00039,120]
[347254827,1735640601833,-50000.0,0.00039,60]
[347254828,1735640601860,-25125.43872651,0.00039,120]
[347254829,1735640601886,-1002.0,0.00039,60]
[347254830,1735640601912,-151.0,0.00039041,120]